[Event "SS Manhem Chess Week 2019 Goteborg Open"]
[Site "Molnlycke kulturhus, Biblioteksgatan 2, Molnlycke, Sweden"]
[Date "2019.08.17"]
[Round "5.6"]
[White "Ahlander, Bjorn"]
[Black "Johnson, Daniel"]
[Result "1-0"]
[TimeControl "15 minutes + 5 seconds per move from move one (Round 1 - 4) / 90 minutes + 30 seconds per move from move one (Round 5 - 8)"]
[WhiteTitle "IM"]
[WhiteFideId "1700251"]
[BlackFideId "1721283"]
[WhiteElo "2390"]
[BlackElo "2201"]

1. d4 {[%clk 01:29:31]} {[%emt 00:01:28]} d5 {[%clk 01:30:47]} {[%emt
00:00:14]} 2. c4 {[%clk 01:29:57]} {[%emt 00:00:04]} e6 {[%clk 01:31:13]}
{[%emt 00:00:04]} 3. Nc3 {[%clk 01:30:22]} {[%emt 00:00:05]} Be7 {[%clk
01:31:39]} {[%emt 00:00:04]} 4. cxd5 {[%clk 01:30:45]} {[%emt 00:00:08]} exd5
{[%clk 01:32:04]} {[%emt 00:00:05]} 5. Bf4 {[%clk 01:31:06]} {[%emt 00:00:08]}
c6 {[%clk 01:32:06]} {[%emt 00:00:29]} 6. Qc2 {[%clk 01:31:27]} {[%emt
00:00:09]} Nf6 {[%clk 01:31:46]} {[%emt 00:00:50]} 7. f3 {[%clk 01:31:19]}
{[%emt 00:00:37]} O-O {[%clk 01:24:34]} {[%emt 00:07:43]} 8. g4 {[%clk
01:31:09]} {[%emt 00:00:40]} c5 {[%clk 01:12:27]} {[%emt 00:12:37]} 9. e3
{[%clk 01:30:44]} {[%emt 00:00:54]} cxd4 {[%clk 01:07:42]} {[%emt 00:05:16]} 10.
exd4 {[%clk 01:31:11]} {[%emt 00:00:03]} Nc6 {[%clk 01:07:47]} {[%emt
00:00:25]} 11. Nge2 {[%clk 01:24:44]} {[%emt 00:06:57]} Be6 {[%clk 01:04:42]}
{[%emt 00:03:35]} 12. Bg2 {[%clk 01:24:28]} {[%emt 00:00:46]} Rc8 {[%clk
01:02:06]} {[%emt 00:03:07]} 13. O-O {[%clk 01:24:01]} {[%emt 00:00:56]} b5
{[%clk 00:57:17]} {[%emt 00:05:20]} 14. Qd2 {[%clk 01:22:54]} {[%emt 00:01:35]}
a6 {[%clk 00:51:48]} {[%emt 00:05:59]} 15. Bg3 {[%clk 01:19:17]} {[%emt
00:04:07]} Nd7 {[%clk 00:43:50]} {[%emt 00:08:29]} 16. Kh1 {[%clk 01:15:11]}
{[%emt 00:04:35]} Nb6 {[%clk 00:28:45]} {[%emt 00:15:36]} 17. b3 {[%clk
01:10:48]} {[%emt 00:04:54]} Re8 {[%clk 00:24:28]} {[%emt 00:04:47]} 18. h3
{[%clk 01:10:16]} {[%emt 00:01:01]} Kh8 {[%clk 00:23:11]} {[%emt 00:01:47]} 19.
Rac1 {[%clk 01:06:26]} {[%emt 00:04:20]} Qd7 {[%clk 00:14:45]} {[%emt
00:08:57]} 20. Nf4 {[%clk 01:04:35]} {[%emt 00:02:20]} Ba3 {[%clk 00:05:27]}
{[%emt 00:09:49]} 21. Rcd1 {[%clk 01:05:01]} {[%emt 00:00:03]} Bb4 {[%clk
00:05:28]} {[%emt 00:00:30]} 22. Nd3 {[%clk 01:04:15]} {[%emt 00:01:14]} Bxc3
{[%clk 00:01:39]} {[%emt 00:04:20]} 23. Qxc3 {[%clk 01:04:42]} {[%emt
00:00:02]} Ne7 {[%clk 00:00:47]} {[%emt 00:01:22]} 24. Nc5 {[%clk 00:59:29]}
{[%emt 00:05:43]} Qa7 {[%clk 00:00:35]} {[%emt 00:00:42]} 25. Qa5 {[%clk
00:59:40]} {[%emt 00:00:19]} Ra8 {[%clk 00:00:35]} {[%emt 00:00:29]} 26. Rfe1
{[%clk 01:00:04]} {[%emt 00:00:05]} Nc6 {[%clk 00:00:51]} {[%emt 00:00:14]} 27.
Qd2 {[%clk 01:00:24]} {[%emt 00:00:11]} Nd7 {[%clk 00:00:57]} {[%emt 00:00:25]}
28. Rc1 {[%clk 01:00:00]} {[%emt 00:00:53]} Rac8 {[%clk 00:01:02]} {[%emt
00:00:25]} 29. f4 {[%clk 00:57:18]} {[%emt 00:03:11]} Nxc5 {[%clk 00:00:34]}
{[%emt 00:00:59]} 30. Rxc5 {[%clk 00:57:37]} {[%emt 00:00:11]} f5 {[%clk
00:00:32]} {[%emt 00:00:31]} 31. gxf5 {[%clk 00:57:38]} {[%emt 00:00:29]} Bf7
{[%clk 00:00:32]} {[%emt 00:00:31]} 32. Rxe8+ {[%clk 00:52:49]} {[%emt
00:05:18]} Bxe8 {[%clk 00:00:53]} {[%emt 00:00:09]} 33. Bxd5 {[%clk 00:53:12]}
{[%emt 00:00:07]} Ne7 {[%clk 00:00:31]} {[%emt 00:00:52]} 34. Rxc8 {[%clk
00:51:42]} {[%emt 00:02:00]} Nxc8 {[%clk 00:00:56]} {[%emt 00:00:06]} 35. Qe3
{[%clk 00:52:04]} {[%emt 00:00:07]} Qd7 {[%clk 00:00:39]} {[%emt 00:00:46]} 36.
Be6 {[%clk 00:49:14]} {[%emt 00:03:20]} Qe7 {[%clk 00:00:50]} {[%emt 00:00:20]}
37. Qc3 {[%clk 00:44:54]} {[%emt 00:04:49]} Nd6 {[%clk 00:00:40]} {[%emt
00:00:40]} 38. Qc5 {[%clk 00:45:01]} {[%emt 00:00:23]} Qb7+ {[%clk 00:00:34]}
{[%emt 00:00:36]} 39. d5 {[%clk 00:45:24]} {[%emt 00:00:06]} Qe7 {[%clk
00:00:50]} {[%emt 00:00:15]} 40. f6 {[%clk 00:39:02]} {[%emt 00:06:52]} gxf6
{[%clk 00:00:33]} {[%emt 00:00:48]} 41. f5 {[%clk 00:39:26]} {[%emt 00:00:05]}
Nxf5 {[%clk 00:00:32]} {[%emt 00:00:31]} 42. Qxe7 {[%clk 00:39:50]} {[%emt
00:00:06]} Nxe7 {[%clk 00:00:57]} {[%emt 00:00:06]} 43. d6 {[%clk 00:40:17]}
{[%emt 00:00:02]} Nc6 {[%clk 00:00:40]} {[%emt 00:00:47]} 44. d7 {[%clk
00:40:33]} {[%emt 00:00:14]} Bg6 {[%clk 00:00:43]} {[%emt 00:00:27]} 45. Bd5
{[%clk 00:40:26]} {[%emt 00:00:37]} Nd8 {[%clk 00:01:09]} {[%emt 00:00:06]} 46.
Bc7 {[%clk 00:40:49]} {[%emt 00:00:06]} 1-0

[Event "SS Manhem Chess Week 2019 Goteborg Open"]
[Site "Molnlycke kulturhus, Biblioteksgatan 2, Molnlycke, Sweden"]
[Date "2019.08.17"]
[Round "5.7"]
[White "Arnelind, Mikael"]
[Black "Kockum, Anton Frisk"]
[Result "1/2-1/2"]
[TimeControl "15 minutes + 5 seconds per move from move one (Round 1 - 4) / 90 minutes + 30 seconds per move from move one (Round 5 - 8)"]
[BlackTitle "FM"]
[WhiteFideId "1704290"]
[BlackFideId "1709143"]
[WhiteElo "2187"]
[BlackElo "2367"]

1. d4 {[%clk 01:30:57]} {[%emt 00:00:02]} f5 {[%clk 01:30:55]} {[%emt
00:00:06]} 2. Nc3 {[%clk 01:30:34]} {[%emt 00:00:53]} d5 {[%clk 01:31:18]}
{[%emt 00:00:07]} 3. Bg5 {[%clk 01:30:32]} {[%emt 00:00:31]} c6 {[%clk
01:31:41]} {[%emt 00:00:08]} 4. e3 {[%clk 01:29:55]} {[%emt 00:01:07]} Qb6
{[%clk 01:32:03]} {[%emt 00:00:08]} 5. a3 {[%clk 01:22:32]} {[%emt 00:07:54]}
Nd7 {[%clk 01:32:22]} {[%emt 00:00:11]} 6. Bd3 {[%clk 01:20:36]} {[%emt
00:02:26]} Ndf6 {[%clk 01:32:31]} {[%emt 00:00:21]} 7. b4 {[%clk 01:18:24]}
{[%emt 00:02:42]} Ne4 {[%clk 01:17:26]} {[%emt 00:15:35]} 8. Na4 {[%clk
01:17:24]} {[%emt 00:01:30]} Qd8 {[%clk 01:17:11]} {[%emt 00:00:45]} 9. Bf4
{[%clk 01:14:17]} {[%emt 00:03:36]} Ngf6 {[%emt 00:06:42]} 10. f3 {[%clk
01:11:34]} {[%emt 00:00:01]} Nd6 {[%clk 01:12:06]} {[%emt 00:02:35]} 11. Ne2
{[%clk 01:09:05]} {[%emt 00:02:59]} g6 {[%clk 01:10:44]} {[%emt 00:01:52]} 12.
O-O {[%clk 01:06:19]} {[%emt 00:03:16]} Bg7 {[%clk 01:10:53]} {[%emt 00:00:22]}
13. Nc5 {[%clk 01:00:32]} {[%emt 00:06:16]} O-O {[%clk 01:08:35]} {[%emt
00:02:48]} 14. c3 {[%clk 00:48:50]} {[%emt 00:12:12]} a5 {[%clk 00:59:54]}
{[%emt 00:09:11]} 15. Nb3 {[%clk 00:42:36]} {[%emt 00:06:44]} a4 {[%clk
00:54:08]} {[%emt 00:06:16]} 16. Nc5 {[%clk 00:42:11]} {[%emt 00:00:55]} b5
{[%clk 00:54:12]} {[%emt 00:00:26]} 17. Be5 {[%clk 00:38:01]} {[%emt 00:04:40]}
g5 {[%clk 00:42:58]} {[%emt 00:11:44]} 18. Qe1 {[%clk 00:36:25]} {[%emt
00:02:06]} h6 {[%clk 00:31:34]} {[%emt 00:11:54]} 19. h4 {[%clk 00:31:07]}
{[%emt 00:05:48]} Nh5 {[%clk 00:22:52]} {[%emt 00:09:12]} 20. hxg5 {[%clk
00:29:25]} {[%emt 00:02:13]} hxg5 {[%clk 00:22:47]} {[%emt 00:00:34]} 21. Ng3
{[%clk 00:27:23]} {[%emt 00:02:31]} Qe8 {[%clk 00:21:55]} {[%emt 00:01:23]} 22.
Nxh5 {[%clk 00:26:29]} {[%emt 00:01:23]} Qxh5 {[%clk 00:22:22]} {[%emt
00:00:03]} 23. Qg3 {[%clk 00:26:16]} {[%emt 00:00:43]} Nf7 {[%clk 00:18:59]}
{[%emt 00:03:54]} 24. Bxg7 {[%clk 00:21:48]} {[%emt 00:04:58]} Kxg7 {[%clk
00:19:24]} {[%emt 00:00:04]} 25. Qc7 {[%clk 00:20:37]} {[%emt 00:01:40]} g4
{[%clk 00:14:56]} {[%emt 00:04:58]} 26. fxg4 {[%clk 00:20:08]} {[%emt
00:01:00]} fxg4 {[%clk 00:06:12]} {[%emt 00:09:15]} 27. Qxe7 {[%clk 00:17:07]}
{[%emt 00:03:31]} g3 {[%clk 00:04:38]} {[%emt 00:02:04]} 28. Qf6+ {[%clk
00:16:52]} {[%emt 00:00:44]} Kg8 {[%clk 00:05:01]} {[%emt 00:00:07]} 29. Qg6+
{[%clk 00:16:34]} {[%emt 00:00:48]} Qxg6 {[%clk 00:05:24]} {[%emt 00:00:07]} 30.
Bxg6 {[%clk 00:17:02]} {[%emt 00:00:02]} Nd6 {[%clk 00:04:45]} {[%emt
00:01:09]} 31. Rxf8+ {[%clk 00:15:31]} {[%emt 00:02:02]} Kxf8 {[%clk 00:05:14]}
32. Rf1+ {[%clk 00:15:45]} {[%emt 00:00:16]} Ke7 {[%clk 00:04:37]} {[%emt
00:01:07]} 33. e4 {[%clk 00:13:40]} {[%emt 00:02:35]} dxe4 {[%clk 00:03:13]}
{[%emt 00:01:53]} 34. Bxe4 {[%clk 00:12:08]} {[%emt 00:02:02]} Bd7 {[%clk
00:02:51]} {[%emt 00:00:52]} 35. Bd3 {[%clk 00:12:08]} {[%emt 00:00:30]} Rg8
{[%clk 00:01:52]} {[%emt 00:01:28]} 36. Rf3 {[%clk 00:12:11]} {[%emt 00:00:28]}
Be8 {[%clk 00:01:29]} {[%emt 00:00:53]} 37. Re3+ {[%clk 00:11:45]} {[%emt
00:00:56]} Kd8 {[%clk 00:01:43]} {[%emt 00:00:15]} 38. Ne6+ {[%clk 00:10:34]}
{[%emt 00:01:41]} Kd7 {[%clk 00:01:23]} {[%emt 00:00:51]} 39. Nf4 {[%clk
00:09:51]} {[%emt 00:01:13]} Bf7 {[%clk 00:01:31]} {[%emt 00:00:22]} 40. Be2
{[%clk 00:08:55]} {[%emt 00:01:26]} Rg5 {[%clk 00:00:42]} {[%emt 00:01:20]} 41.
Re5 {[%clk 00:03:39]} {[%emt 00:05:46]} Rg7 {[%clk 00:01:10]} {[%emt 00:00:02]}
42. Nd3 {[%clk 00:02:31]} {[%emt 00:01:37]} Bd5 {[%clk 00:01:15]} {[%emt
00:00:25]} 43. Re3 {[%clk 00:02:34]} {[%emt 00:00:27]} Kc8 {[%clk 00:01:15]}
{[%emt 00:00:30]} 44. Ne5 {[%clk 00:02:22]} {[%emt 00:00:42]} Kc7 {[%clk
00:01:05]} {[%emt 00:00:41]} 45. Bf3 {[%clk 00:02:12]} {[%emt 00:00:39]} Nf5
{[%clk 00:00:50]} {[%emt 00:00:44]} 46. Rd3 {[%clk 00:02:20]} {[%emt 00:00:23]}
Kd6 {[%clk 00:01:04]} {[%emt 00:00:17]} 47. Bg4 {[%clk 00:01:44]} {[%emt
00:01:06]} Nh6 {[%clk 00:00:51]} {[%emt 00:00:42]} 48. Bf3 {[%clk 00:01:15]}
1/2-1/2

[Event "SS Manhem Chess Week 2019 Goteborg Open"]
[Site "Molnlycke kulturhus, Biblioteksgatan 2, Molnlycke, Sweden"]
[Date "2019.08.17"]
[Round "5.8"]
[White "Nilsson, Joakim"]
[Black "Pham, Bich Ngoc"]
[Result "1/2-1/2"]
[TimeControl "15 minutes + 5 seconds per move from move one (Round 1 - 4) / 90 minutes + 30 seconds per move from move one (Round 5 - 8)"]
[WhiteTitle "FM"]
[BlackTitle "WIM"]
[WhiteFideId "1723383"]
[BlackFideId "12401285"]
[WhiteElo "2319"]
[BlackElo "2176"]

1. d4 {[%clk 01:30:58]} {[%emt 00:00:02]} f5 {[%clk 01:12:11]} {[%emt
00:18:49]} 2. Bg5 {[%clk 01:31:21]} {[%emt 00:00:06]} g6 {[%clk 01:12:00]}
{[%emt 00:00:42]} 3. Nc3 {[%clk 01:31:43]} {[%emt 00:00:09]} Bg7 {[%clk
01:12:02]} {[%emt 00:00:27]} 4. e4 {[%clk 01:31:58]} {[%emt 00:00:15]} fxe4
{[%clk 01:12:25]} {[%emt 00:00:07]} 5. Nxe4 {[%clk 01:32:23]} {[%emt 00:00:06]}
Nf6 {[%clk 01:12:48]} {[%emt 00:00:06]} 6. Nxf6+ {[%clk 01:32:45]} {[%emt
00:00:08]} exf6 {[%clk 01:13:09]} {[%emt 00:00:09]} 7. Be3 {[%clk 01:33:10]}
{[%emt 00:00:05]} d6 {[%clk 01:12:28]} {[%emt 00:01:12]} 8. Bd3 {[%clk
01:33:20]} {[%emt 00:00:20]} Nc6 {[%clk 01:11:50]} {[%emt 00:01:07]} 9. Ne2
{[%clk 01:32:37]} {[%emt 00:01:13]} Nb4 {[%clk 01:05:42]} {[%emt 00:06:38]} 10.
Bc4 {[%clk 01:32:08]} {[%emt 00:00:59]} Bf5 {[%clk 01:05:33]} {[%emt 00:00:39]}
11. Bb3 {[%clk 01:29:33]} {[%emt 00:03:06]} c6 {[%clk 00:55:46]} {[%emt
00:10:17]} 12. Ng3 {[%clk 01:27:30]} {[%emt 00:02:33]} Bd7 {[%clk 00:53:45]}
{[%emt 00:02:31]} 13. c3 {[%clk 01:21:52]} {[%emt 00:06:08]} Nd5 {[%clk
00:53:58]} {[%emt 00:00:17]} 14. Bxd5 {[%clk 01:21:23]} {[%emt 00:00:58]} cxd5
{[%clk 00:54:23]} {[%emt 00:00:06]} 15. Qf3 {[%clk 01:14:52]} {[%emt 00:07:01]}
Be6 {[%clk 00:52:44]} {[%emt 00:02:09]} 16. Ne2 {[%clk 01:12:37]} {[%emt
00:02:46]} g5 {[%clk 00:50:59]} {[%emt 00:02:15]} 17. Ng3 {[%clk 01:08:52]}
{[%emt 00:04:14]} Qd7 {[%clk 00:49:47]} {[%emt 00:01:41]} 18. Nh5 {[%clk
01:01:36]} {[%emt 00:07:47]} O-O {[%clk 00:49:43]} {[%emt 00:00:33]} 19. Nxg7
{[%clk 01:01:57]} {[%emt 00:00:10]} Qxg7 {[%clk 00:50:00]} {[%emt 00:00:13]} 20.
h4 {[%clk 01:01:38]} {[%emt 00:00:50]} h6 {[%clk 00:48:50]} {[%emt 00:01:39]}
21. Qg3 {[%clk 00:59:58]} {[%emt 00:02:10]} Rad8 {[%clk 00:48:05]} {[%emt
00:01:15]} 22. Kf1 {[%clk 00:53:50]} {[%emt 00:06:39]} Bf5 {[%clk 00:45:39]}
{[%emt 00:02:56]} 23. Re1 {[%clk 00:50:10]} {[%emt 00:04:10]} Rfe8 {[%clk
00:45:19]} {[%emt 00:00:51]} 24. hxg5 {[%clk 00:49:29]} {[%emt 00:01:11]} fxg5
{[%clk 00:45:22]} {[%emt 00:00:27]} 25. Qf3 {[%clk 00:43:16]} {[%emt 00:06:43]}
Bd3+ {[%clk 00:42:28]} {[%emt 00:03:24]} 26. Kg1 {[%clk 00:43:11]} {[%emt
00:00:35]} Re4 {[%clk 00:42:23]} {[%emt 00:00:35]} 27. Qh3 {[%clk 00:40:06]}
{[%emt 00:03:35]} Kh7 {[%clk 00:41:47]} {[%emt 00:01:05]} 28. Qf5+ {[%clk
00:38:47]} {[%emt 00:01:49]} Qg6 {[%clk 00:40:16]} {[%emt 00:02:02]} 29. Qxd5
{[%clk 00:38:46]} {[%emt 00:00:31]} Rd7 {[%clk 00:38:11]} {[%emt 00:02:34]} 30.
Qb3 {[%clk 00:29:28]} {[%emt 00:09:49]} d5 {[%clk 00:35:34]} {[%emt 00:03:07]}
31. Qd1 {[%clk 00:27:52]} {[%emt 00:02:05]} Rh4 {[%clk 00:35:25]} {[%emt
00:00:40]} 32. Qf3 {[%clk 00:20:35]} {[%emt 00:07:48]} Be4 {[%clk 00:34:28]}
{[%emt 00:01:27]} 33. Qg3 {[%clk 00:19:44]} {[%emt 00:01:21]} Qh5 {[%clk
00:33:14]} {[%emt 00:01:43]} 34. Rh2 {[%clk 00:18:38]} {[%emt 00:01:36]} Rxh2
{[%clk 00:31:35]} {[%emt 00:02:08]} 35. Qxh2 {[%clk 00:19:05]} {[%emt
00:00:03]} Qg4 {[%clk 00:31:56]} {[%emt 00:00:09]} 36. Qg3 {[%clk 00:16:44]}
{[%emt 00:02:52]} Qxg3 {[%clk 00:32:14]} {[%emt 00:00:13]} 37. fxg3 {[%clk
00:17:12]} {[%emt 00:00:02]} Kg6 {[%clk 00:31:53]} {[%emt 00:00:50]} 38. Bc1
{[%clk 00:16:06]} {[%emt 00:01:36]} b5 {[%clk 00:31:42]} {[%emt 00:00:41]} 39.
Bd2 {[%clk 00:14:48]} {[%emt 00:01:48]} 1/2-1/2

[Event "SS Manhem Chess Week 2019 Goteborg Open"]
[Site "Molnlycke kulturhus, Biblioteksgatan 2, Molnlycke, Sweden"]
[Date "2019.08.17"]
[Round "5.9"]
[White "Troberg Eskola, Love"]
[Black "Rydstrom, Tom"]
[Result "1/2-1/2"]
[TimeControl "15 minutes + 5 seconds per move from move one (Round 1 - 4) / 90 minutes + 30 seconds per move from move one (Round 5 - 8)"]
[BlackTitle "FM"]
[WhiteFideId "1724185"]
[BlackFideId "1714830"]
[WhiteElo "2134"]
[BlackElo "2314"]

1. d4 {[%clk 01:30:58]} {[%emt 00:00:02]} Nf6 {[%clk 01:20:04]} {[%emt
00:10:56]} 2. Nc3 {[%clk 01:31:21]} {[%emt 00:00:07]} d5 {[%clk 01:20:29]}
{[%emt 00:00:05]} 3. Bf4 {[%clk 01:31:46]} {[%emt 00:00:05]} a6 {[%clk
01:20:53]} {[%emt 00:00:07]} 4. e3 {[%clk 01:32:02]} {[%emt 00:00:13]} Bf5
{[%clk 01:20:15]} {[%emt 00:01:08]} 5. f3 {[%clk 01:32:08]} {[%emt 00:00:24]}
c5 {[%clk 01:17:10]} {[%emt 00:03:34]} 6. g4 {[%clk 01:31:04]} {[%emt
00:01:33]} Bg6 {[%clk 01:16:18]} {[%emt 00:01:22]} 7. h4 {[%clk 01:31:03]}
{[%emt 00:00:31]} h6 {[%clk 01:16:05]} {[%emt 00:00:43]} 8. Bd3 {[%clk
01:23:07]} {[%emt 00:08:26]} Bxd3 {[%clk 01:16:18]} {[%emt 00:00:18]} 9. Qxd3
{[%clk 01:23:35]} {[%emt 00:00:02]} Nc6 {[%clk 01:16:28]} {[%emt 00:00:20]} 10.
Nge2 {[%clk 01:22:47]} {[%emt 00:01:19]} e6 {[%clk 01:16:52]} {[%emt 00:00:06]}
11. Kf2 {[%clk 01:15:26]} {[%emt 00:07:50]} Bd6 {[%clk 01:09:11]} {[%emt
00:08:11]} 12. Rad1 {[%clk 01:13:14]} {[%emt 00:02:41]} cxd4 {[%clk 01:02:28]}
{[%emt 00:07:13]} 13. exd4 {[%clk 01:13:14]} {[%emt 00:00:30]} Bxf4 {[%clk
01:02:37]} {[%emt 00:00:21]} 14. Nxf4 {[%clk 01:13:36]} {[%emt 00:00:07]} Qd6
{[%clk 01:02:55]} {[%emt 00:00:13]} 15. Qe3 {[%clk 01:07:47]} {[%emt 00:06:18]}
O-O-O {[%clk 01:01:36]} {[%emt 00:01:49]} 16. Nd3 {[%clk 01:05:28]} {[%emt
00:02:49]} h5 {[%clk 00:50:06]} {[%emt 00:12:01]} 17. g5 {[%clk 01:05:08]}
{[%emt 00:00:50]} Nd7 {[%clk 00:49:44]} {[%emt 00:00:51]} 18. Qf4 {[%clk
01:03:32]} {[%emt 00:02:05]} Qe7 {[%clk 00:48:36]} {[%emt 00:01:38]} 19. Rhe1
{[%clk 01:03:33]} {[%emt 00:00:30]} Nf8 {[%clk 00:49:02]} {[%emt 00:00:04]} 20.
Na4 {[%clk 01:01:50]} {[%emt 00:02:13]} Qc7 {[%clk 00:48:41]} {[%emt 00:00:51]}
21. Qxc7+ {[%clk 00:57:35]} {[%emt 00:04:46]} Kxc7 {[%clk 00:49:09]} {[%emt
00:00:02]} 22. Nf4 {[%clk 00:56:43]} {[%emt 00:01:21]} Ne7 {[%clk 00:49:21]}
{[%emt 00:00:18]} 23. Kg3 {[%clk 00:55:19]} {[%emt 00:01:54]} Nfg6 {[%clk
00:39:59]} {[%emt 00:09:53]} 24. Nxg6 {[%clk 00:55:05]} {[%emt 00:00:44]} Nxg6
{[%clk 00:40:26]} {[%emt 00:00:02]} 25. Nc5 {[%clk 00:53:48]} {[%emt 00:01:47]}
Rhe8 {[%clk 00:38:27]} {[%emt 00:02:29]} 26. f4 {[%clk 00:48:54]} {[%emt
00:05:24]} a5 {[%clk 00:34:37]} {[%emt 00:04:20]} 27. Rd2 {[%clk 00:46:25]}
{[%emt 00:03:00]} Ne7 {[%clk 00:31:31]} {[%emt 00:03:35]} 28. c3 {[%clk
00:45:52]} {[%emt 00:01:03]} b6 {[%clk 00:30:48]} {[%emt 00:01:14]} 29. Nd3
{[%clk 00:45:41]} {[%emt 00:00:40]} f6 {[%clk 00:30:19]} {[%emt 00:01:00]} 30.
Rde2 {[%clk 00:44:36]} {[%emt 00:01:35]} Kd7 {[%clk 00:29:15]} {[%emt
00:01:31]} 31. Kh3 {[%clk 00:44:32]} {[%emt 00:00:36]} Nf5 {[%clk 00:29:26]}
{[%emt 00:00:19]} 32. a4 {[%clk 00:41:01]} {[%emt 00:04:02]} Rc8 {[%clk
00:29:13]} {[%emt 00:00:43]} 33. Rg2 {[%clk 00:37:10]} {[%emt 00:04:20]} Rc4
{[%clk 00:16:34]} {[%emt 00:13:10]} 34. Ra1 {[%clk 00:30:37]} {[%emt 00:07:02]}
e5 {[%clk 00:16:51]} {[%emt 00:00:13]} 35. gxf6 {[%clk 00:29:31]} {[%emt
00:01:36]} gxf6 {[%clk 00:17:01]} {[%emt 00:00:20]} 36. fxe5 {[%clk 00:29:26]}
{[%emt 00:00:35]} fxe5 {[%clk 00:16:53]} {[%emt 00:00:39]} 37. Rf1 {[%clk
00:18:36]} {[%emt 00:11:20]} Ne3 {[%clk 00:11:35]} {[%emt 00:05:48]} 38. Rg7+
{[%clk 00:17:26]} {[%emt 00:01:40]} Kc8 {[%clk 00:11:44]} {[%emt 00:00:20]} 39.
Rff7 {[%clk 00:13:53]} {[%emt 00:04:04]} exd4 {[%clk 00:08:46]} {[%emt
00:03:28]} 40. Ra7 {[%clk 00:13:31]} {[%emt 00:00:52]} Kb8 {[%clk 00:08:28]}
{[%emt 00:00:47]} 41. Rgb7+ {[%clk 00:13:27]} {[%emt 00:00:35]} Kc8 {[%clk
00:08:57]} 42. Rh7 {[%clk 00:13:40]} {[%emt 00:00:16]} Kb8 {[%clk 00:09:01]}
{[%emt 00:00:26]} 43. Rhb7+ {[%clk 00:14:03]} {[%emt 00:00:08]} 1/2-1/2